[Event "Charlotte IM-D May 2022"]
[Site "Charlotte"]
[Date "2022.05.06"]
[Round "3.5"]
[White "Matros, Alexander"]
[Black "Nakada, Akira"]
[Result "1/2-1/2"]
[ECO "E51"]
[WhiteElo "2339"]
[BlackElo "2324"]
[Annotator "TA"]
[PlyCount "115"]
[EventDate "2022.05.04"]
[EventType "tourn"]
[EventCountry "USA"]
[SourceTitle "playchess.com"]
[Source "ChessBase"]
[SourceQuality "1"]
[TimeControl "5400+30"]

{[%evp 13,115,-27,0,0,0,0,0,15,29,30,53,48,48,37,116,116,122,-15,-19,-12,0,0,31,36,29,22,30,19,42,40,56,58,55,66,73,16,12,12,12,23,10,16,9,12,16,16,45,28,45,42,58,68,62,73,81,65,71,60,63,85,64,69,97,15,171,47,51,52,52,68,92,22,52,54,82,78,92,111,98,24,12,8,8,8,8,8,8,8,8,8,857,833,711,678,653,614,430,0,0,0,0,0,0,0]} 1. d4 {[%emt 0:00:04]} Nf6 {[%emt 0:00:07]} 2. c4 {[%emt 0:00:12]} e6 {[%emt 0:00:04]} 3. Nc3 {[%emt 0:00:10]} Bb4 {[%emt 0:00:05]} 4. e3 {[%emt 0:00:53]} O-O {[%emt 0:00:56]} 5. Bd2 {[%emt 0:00:23]} d5 {[%emt 0:00:39]} 6. cxd5 {[%emt 0:00:54]} exd5 {[%emt 0:00:14]} 7. Nf3 {[%emt 0:00:20]} b6 {[%emt 0:01:52]} 8. Rc1 {[%emt 0:00:42] E51: Nimzo-Indian: Rubinstein: 4...0-0 5 Nf3 d5.} Bb7 {[%emt 0:04:11]} 9. Bd3 {[%emt 0:00:38]} Re8 {[%emt 0:00:44]} 10. O-O {[%emt 0:00:50]} a6 {[%emt 0:02:37]} 11. Ne5 {[%emt 0:00:49]} Bd6 {[%emt 0:00:05]} 12. f4 {[%emt 0:00:33]} c5 {[%emt 0:00:12]} 13. Be1 {[%emt 0:04:39] Threatens to win with Bh4.} Nc6 {[%emt 0:02:43]} (13... Nbd7 $14) 14. Bh4 $16 {[%emt 0:01:54] White is more active.} cxd4 {[%emt 0:10:58] [#]} 15. Nxc6 $146 {[%emt 0:07:34]} ({Better is} 15. exd4 $16 {Hoping for Bxf6.} Nxd4 16. Bxh7+ $1 {[%mdl 512]} Kxh7 17. Nxf7) ({Predecessor:} 15. Bxf6 Qxf6 16. Nxd5 Qe6 17. Nxb6 Nxe5 18. fxe5 Qxe5 19. Rf4 Qxe3+ 20. Rf2 Bxh2+ 21. Kxh2 Qxf2 {0-1 (51) Goltseva,E (2304)-Svane,F (2486) Chess.com INT 2021}) 15... Bxc6 $11 {[%emt 0:00:09]} 16. exd4 {[%emt 0:00:08][%cal Be3d4,Bd4d5,Bd5d6][%mdl 32]} Be7 {[%emt 0:02:44]} 17. Re1 {[%emt 0:09:13]} Ne4 {[%emt 0:04:22]} 18. Bxe7 {[%emt 0:01:12]} Rxe7 {[%emt 0:00:03]} 19. Bxe4 {[%emt 0:13:17]} dxe4 {[%emt 0:00:07]} 20. d5 {[%emt 0:00:12]} Bb7 {[%emt 0:04:33]} 21. Qd4 {[%emt 0:02:02]} (21. Nxe4 Bxd5 22. Nc3 (22. Nf6+ $2 gxf6 23. Rxe7 Qxe7 $19) 22... Rxe1+ 23. Qxe1 Bc6 $11) 21... Rd7 {[%emt 0:15:13][%cal Rb7d5]} 22. Rcd1 $1 {[%emt 0:01:34]} ({But not} 22. Qxe4 Bxd5 23. Nxd5 Rxd5 $11) ({Don't play} 22. Nxe4 Rxd5 23. Qf2 Rd4 $15) ({Much weaker is} 22. Rxe4 Bxd5 23. Nxd5 Rxd5 $11) 22... f5 {[%emt 0:00:05]} 23. d6 {[%emt 0:05:41]} Qf6 {[%emt 0:16:17]} 24. Qxf6 {[%emt 0:05:03]} (24. Qxb6 $16 {White wants to play Na4.} Rad8 25. Rd2) 24... gxf6 {[%emt 0:00:06]} 25. Na4 {[%emt 0:00:16]} Rad8 {[%emt 0:00:21]} 26. Nxb6 {[%emt 0:00:08]} Rxd6 {[%emt 0:00:06]} 27. Rxd6 {[%emt 0:00:12]} Rxd6 {[%emt 0:00:04][%mdl 4096] Endgame KRB-KRN} 28. Nc4 {[%emt 0:00:10]} Rd4 {[%emt 0:05:16]} 29. b3 {[%emt 0:00:49]} Kf7 {[%emt 0:02:01]} 30. Kf2 {[%emt 0:00:39]} Ke6 {[%emt 0:28:36]} 31. Ke2 {[%emt 0:12:12]} Bd5 {[%emt 0:00:00]} 32. Ne3 {[%emt 0:03:19]} Bc6 $1 {[%emt 0:00:00]} 33. Rd1 {[%emt 0:00:44]} Bb5+ {[%emt 0:00:00] [#]} 34. Ke1 $1 {[%emt 0:00:05]} Bd3 {[%emt 0:00:00]} 35. Rc1 {[%emt 0:04:27]} Bb5 {[%emt 0:00:00] Inhibits Rc6+.} 36. Rc3 {[%emt 0:00:19]} Bd7 {[%emt 0:00:00]} 37. Nc2 {[%emt 0:09:48]} Rd6 {[%emt 0:00:00]} 38. Rc4 {[%emt 0:00:29]} (38. Rh3 $16) 38... Bb5 $2 {[%emt 0:00:00]} (38... a5 $11) 39. Rd4 {[%emt 0:00:59]} (39. Nd4+ $18 Kd7 40. Nxf5 Bxc4 41. Nxd6 Bxb3 42. Nxe4 Bxa2 43. Nxf6+ Ke6 44. Nxh7) 39... Rc6 {[%emt 0:00:00]} 40. Kd2 {[%emt 0:00:12]} Rc8 {[%emt 0:00:19]} 41. Ne3 {[%emt 0:00:39]} Bd3 {[%emt 0:01:31]} 42. a3 {[%emt 0:03:53]} ({White should try} 42. Rd5 $16) 42... h5 {[%emt 0:02:28]} 43. Rd5 {[%emt 0:02:13]} Rg8 {[%emt 0:00:41][%cal Og8g2]} 44. Rc5 {[%emt 0:01:54]} Bb5 {[%emt 0:00:35] [#]} 45. a4 $1 {[%emt 0:01:34]} Bd7 {[%emt 0:00:50]} 46. Kc3 {[%emt 0:00:46]} (46. h4 $16) 46... h4 {[%emt 0:00:43]} 47. Rxf5 {[%emt 0:06:44] aiming for Rc5.} (47. Kd2 {seems wilder.} Rd8 48. Nxf5 Bxa4+ 49. Ke3) 47... Rxg2 {[%emt 0:00:26] [#]} 48. Rxf6+ $1 {[%emt 0:00:40]} Kxf6 {[%emt 0:00:01]} 49. Nxg2 {[%emt 0:00:10] KB-KN} Kf5 {[%emt 0:01:56]} 50. Nxh4+ {[%emt 0:00:05]} Kxf4 {[%emt 0:00:30]} 51. Kd4 {[%emt 0:00:30]} Be8 $2 {[%emt 0:00:00][%mdl 8192] Against Ng6+} (51... a5 $11) 52. Ng2+ $18 {[%emt 0:00:15]} Kf3 {[%emt 0:00:00]} 53. Ne3 {[%emt 0:00:08]} a5 {[%emt 0:00:04]} 54. Nc4 {[%emt 0:00:50] Black must now prevent Nd2+.} Kf4 {[%emt 0:01:56]} 55. Ne3 $2 {[%emt 0:02:48]} (55. Kc3 $18) 55... Bf7 {[%emt 0:00:00] The position is equal.} 56. Ng2+ {[%emt 0:00:38]} Kf3 {[%emt 0:00:00]} 57. Ne1+ {[%emt 0:00:29]} Kf4 {[%emt 0:01:30]} 58. Ng2+ {[%emt 0:01:29] Weighted Error Value: White=0.24 (precise) /Black=0.17 (very precise)} 1/2-1/2

[Event "Charlotte IM-D May 2022"]
[Site "Charlotte"]
[Date "2022.05.06"]
[Round "4.1"]
[White "Rosenberg, Evan S"]
[Black "Nakada, Akira"]
[Result "0-1"]
[ECO "E49"]
[WhiteElo "2035"]
[BlackElo "2324"]
[Annotator "TA"]
[PlyCount "60"]
[EventDate "2022.05.04"]
[EventType "tourn"]
[EventCountry "USA"]
[SourceTitle "playchess.com"]
[Source "ChessBase"]
[SourceQuality "1"]
[TimeControl "5400+30"]

{[%evp 19,60,0,9,-9,0,-12,-3,-24,-23,-31,-25,-171,-160,-172,-172,-205,-190,-193,-185,-203,-188,-265,-283,-301,-323,-575,-559,-695,-675,-761,-765,-937,-641,-781,-775,-836,-835,-815,-801,-1292,-1008,-29992,-29993]} 1. d4 {[%emt 0:00:03]} Nf6 {[%emt 1:31:00]} 2. c4 {[%emt 0:00:06]} e6 {[%emt 0:00:00]} 3. Nc3 {[%emt 0:00:05]} Bb4 {[%emt 0:00:00]} 4. e3 {[%emt 0:00:07]} O-O {[%emt 0:00:00]} 5. a3 {[%emt 0:00:04]} Bxc3+ {[%emt 0:00:00]} 6. bxc3 {[%emt 0:00:04]} d5 {[%emt 0:00:00]} 7. cxd5 {[%emt 0:00:25]} exd5 {[%emt 0:00:00]} 8. Bd3 {[%emt 0:00:04]} c5 {[%emt 0:00:00]} 9. Ne2 {[%emt 0:00:08]} b6 {[%emt 0:00:00]} 10. O-O {[%emt 0:01:04]} Ba6 {[%emt 0:00:00]} 11. Bc2 {[%emt 0:00:30] E49: Nimzo-Indian: Rubinstein: 5 Bd3 d5 6 a3 Bxc3+ 7 bxc3.} Nc6 {[%emt 0:00:00]} 12. Re1 {[%emt 1:33:50]} Re8 {[%emt 0:00:00] [#]} 13. Ng3 $146 {[%emt 0:00:00] The position is equal.} ({Predecessor:} 13. f3 Rc8 14. g4 Qc7 15. Bf5 Rcd8 16. Nf4 h6 17. Ra2 Re7 18. h4 cxd4 19. cxd4 Rde8 20. e4 dxe4 21. g5 exf3 22. Rxe7 Nxe7 23. Rc2 {0-1 (23) Kayonde,A (2394)-Grover,S (2490) Pretoria 2018}) 13... Ne4 {[%emt 0:06:00]} 14. Nxe4 {[%emt 0:01:00]} (14. Qg4 {looks sharper.} g6 15. Nxe4 f5 16. Nf6+) 14... dxe4 {[%emt 0:00:00]} 15. d5 {[%emt 0:00:00]} (15. f3 $11) 15... Na5 $1 $19 {[%emt 0:00:00]} 16. f3 {[%emt 0:00:00] [#]} f5 {[%emt 0:00:00][%cal Bf7f5,Bf5e4,Be4d3][%mdl 32]} 17. fxe4 {[%emt 0:00:00]} fxe4 {[%emt 0:00:00]} 18. d6 {[%emt 0:00:00][%cal Oc2e4]} Bc4 {[%emt 0:00:00]} 19. Qg4 {[%emt 0:00:00] [#]} Bd3 {[%emt 0:00:00]} (19... Qxd6 20. Bxe4 Rad8 21. Bf5 $17) 20. Bxd3 {[%emt 0:00:00]} (20. Ba4 $142) 20... exd3 {[%emt 0:00:00]} 21. c4 {[%emt 0:00:00] And now Bb2 would win.} ({But not} 21. d7 Re7 22. Qf3 Rxd7 $19) 21... Qxd6 {[%emt 0:00:00]} (21... Qf6 22. Bd2 $17) 22. Bb2 $2 {[%emt 0:00:00]} (22. Bd2) 22... Qg6 {[%emt 0:00:00] Active counter play!} 23. Qf4 {[%emt 0:00:00]} Re4 {[%emt 0:00:00]} 24. Qc7 {[%emt 0:00:00]} Nxc4 {[%emt 0:00:00]} 25. Bd4 {[%emt 0:00:00]} Qf7 {[%emt 0:00:00]} 26. Qc6 {[%emt 0:00:00]} Rae8 {[%emt 0:00:00]} ({And not} 26... cxd4 27. Qxe4 Rf8 28. Qxd4 $11 (28. Rf1 Qxf1+ 29. Rxf1 Rxf1+ 30. Kxf1 Nd2+ 31. Ke1 Nxe4 32. exd4 Kf7 33. h4 Ke6 34. h5 Kd5 35. Kd1 Kxd4 36. h6 gxh6 37. Kc1 Ke3 38. a4 d2+ 39. Kc2 Ke2 40. Kb2 d1=Q 41. a5 Nd2 42. Kc3 Qc1+ 43. Kb4 Qc5+ 44. Ka4 Qxa5#)) 27. Bc3 {[%emt 0:00:00]} Nxe3 {[%emt 0:00:00] ...Qc4 is the strong threat.} 28. Bd2 {[%emt 0:00:00]} Qd5 {[%emt 0:00:00]} 29. Qb5 {[%emt 0:00:00]} c4 {[%emt 0:00:00]} 30. Qa6 {[%emt 0:00:00] [#]} Rg4 $1 {[%emt 0:00:00] White got outplayed after the opening.  Weighted Error Value: White=1.25/Black=0.26 (precise)} 0-1

[Event "Charlotte IM-D May 2022"]
[Site "Charlotte"]
[Date "2022.05.06"]
[Round "4.2"]
[White "Woodward, Andy"]
[Black "Matros, Alexander"]
[Result "1-0"]
[ECO "E04"]
[WhiteElo "2354"]
[BlackElo "2339"]
[Annotator "TA"]
[PlyCount "129"]
[EventDate "2022.05.04"]
[EventType "tourn"]
[EventCountry "USA"]
[SourceTitle "playchess.com"]
[Source "ChessBase"]
[SourceQuality "1"]
[TimeControl "5400+30"]

{[%evp 10,129,16,19,4,0,-4,0,-9,-55,-45,-80,-91,-114,-96,-105,-114,-112,-105,-119,-114,-136,-122,-150,-156,-147,-139,-166,-182,-187,-194,-164,-142,-165,-108,-156,-69,-72,-62,-66,-30,-39,-12,-8,0,0,0,0,0,-105,-91,-83,-109,-91,-88,-117,0,0,0,0,0,0,0,0,389,394,384,392,388,388,448,441,412,412,888,887,888,847,900,878,873,856,894,887,911,903,847,847,671,670,1433,1142,1948,1941,1934,1927,1919,1919,1917,1870,1815,1815,1782,1757,1757,1757,1622,1622,1067,1055,29980,29981,29981,29982,29982,29983,29986,29987,29989,29990,29991,29989]} 1. d4 {[%emt 0:00:01] Marin,M} Nf6 {[%emt 0:02:50]} 2. c4 {[%emt 0:00:07]} e6 {[%emt 0:00:10]} 3. g3 {[%emt 0:00:27]} d5 {[%emt 0:00:23]} 4. Bg2 {[%emt 0:00:13]} dxc4 {[%emt 0:00:58]} 5. Nf3 {[%emt 0:03:43]} a6 {[%emt 0:00:48]} 6. Ne5 {[%emt 0:09:27]} Bb4+ {[%emt 0:04:25] E04: Open Catalan: 5 Nf3.} 7. Bd2 {[%emt 0:01:03]} Qxd4 {[%emt 0:00:53]} 8. Bxb4 {[%emt 0:07:25]} Qxe5 {[%emt 0:00:23] The position is equal.} 9. Nd2 {[%emt 0:06:52] [#]} (9. Nc3 Nbd7 10. f4 Qe3 $17) (9. Na3 $11) 9... Qxb2 $146 {[%emt 0:14:20]} ({Predecessor:} 9... Qb5 10. Ba3 Bd7 11. Qc2 Nc6 12. Rc1 O-O-O 13. Nxc4 Kb8 14. b3 Nd4 15. Qb2 Bc6 {0-1 (58) Kamsky,G (2762)-Wang,H (2737) Tashkent 2012 CBM 152 [Marin,M]}) 10. Rb1 {[%emt 0:00:35]} Qd4 {[%emt 0:00:09]} (10... Qxa2 11. Bc3 Qa3 12. Bb4 $11) 11. Rc1 {[%emt 0:04:22]} Nd5 $1 {[%emt 0:02:35]} 12. Rxc4 {[%emt 0:04:34]} Qb2 {[%emt 0:00:32]} 13. Bxd5 {[%emt 0:12:20]} exd5 {[%emt 0:00:18]} 14. Bc3 {[%emt 0:02:24]} Qb6 {[%emt 0:01:50]} (14... Qxa2 $2 15. Ra4 Qxa4 16. Qxa4+ Nc6 17. Bxg7 $18) 15. Bxg7 {[%emt 0:02:37]} dxc4 {[%emt 0:06:23]} 16. Bxh8 {[%emt 0:00:35]} Qc6 {[%emt 0:00:51] Inhibits Ne4.} 17. f3 {[%emt 0:03:35]} Be6 {[%emt 0:09:35]} 18. O-O {[%emt 0:04:07]} Nd7 {[%emt 0:00:41]} 19. Qc2 {[%emt 0:01:06]} O-O-O {[%emt 0:02:09]} 20. Bd4 {[%emt 0:01:27]} f5 {[%emt 0:02:15]} 21. Be3 {[%emt 0:02:49]} Ne5 {[%emt 0:10:38]} (21... b5 $19 22. Nb3 Qd5) 22. Rc1 {[%emt 0:01:38]} (22. Qc3 $142 Qd5 23. Qa3) 22... Rd7 {[%emt 0:03:47]} (22... Qd6 $17 23. Bf4 b5) 23. Qc3 $15 {[%emt 0:02:21]} Qd5 {[%emt 0:00:41]} 24. Kf2 {[%emt 0:03:16]} b5 {[%emt 0:04:30]} 25. a4 $1 {[%emt 0:04:10]} Nc6 {[%emt 0:02:03][%cal Be5c6,Bc6b8,Bb8a6][%mdl 32] Threatening ...Qe5.} 26. axb5 {[%emt 0:00:15]} axb5 {[%emt 0:00:02]} 27. Qa3 {[%emt 0:00:11]} Nb8 {[%emt 0:07:36] Inhibits Qa6+.} 28. Nb1 {[%emt 0:01:03][%cal Bd2b1,Bb1a3,Ba3c2,Bc2b4][%mdl 32]} Qd6 {[%emt 0:03:28]} 29. Bc5 {[%emt 0:00:34]} (29. Qa5 $1 $11 {was the only way to keep the balance.}) 29... Qc6 $17 {[%emt 0:00:27]} 30. Be3 {[%emt 0:02:24]} Na6 {[%emt 0:00:21]} 31. Qf8+ {[%emt 0:01:17]} Rd8 {[%emt 0:01:22]} 32. Qf6 {[%emt 0:00:30]} Rd7 {[%emt 0:07:10]} ({Black should play} 32... b4 $17 {aiming for ...Re8.} 33. Nd2 c3) 33. Na3 {[%emt 0:02:21][%cal Oa3b5]} Rd5 {[%emt 0:03:00]} 34. Nc2 {[%emt 0:04:54] Strongly threatening Nd4.} Bd7 {[%emt 0:01:18]} 35. Qh8+ {[%emt 0:00:19]} Kb7 $1 {[%emt 0:00:03]} ({Resist} 35... Be8 36. Ra1 f4 37. Bxf4 $16 (37. gxf4 Rd8 $16)) 36. Ra1 {[%emt 0:00:26][%cal Oc2b4] Hoping for Nb4!} Qd6 {[%emt 0:00:53][%mdl 8192] [#] Against Nb4} (36... Qg6 $11 {and Black is okay.}) 37. Nb4 $1 $18 {[%emt 0:00:10][%mdl 512]} Qe5 {[%emt 0:06:11]} (37... Qxb4 {[#] is a self mate.} 38. Rxa6 $1 {[%mdl 512]} Bc8 39. Ra7+ Kc6 40. Qxc8) 38. Qxe5 {[%emt 0:00:07] The board is on fire.} Rxe5 {[%emt 0:00:04]} 39. Nxa6 {[%emt 0:00:07]} Bc8 {[%emt 0:00:48]} 40. f4 {[%emt 0:00:33]} Re7 {[%emt 0:01:06]} 41. Nb4 {[%emt 0:00:22] Intending Ra7+ and mate.} Rxe3 {[%emt 0:00:21]} (41... Re6 $142 42. Ra5 Bd7) 42. Kxe3 {[%emt 0:00:06]} c5 {[%emt 0:00:02]} 43. Nc2 {[%emt 0:00:10]} Kb6 {[%emt 0:00:52]} 44. Rb1 {[%emt 0:00:04]} Be6 {[%emt 0:00:28]} 45. Kd2 {[%emt 0:00:31]} Kc6 {[%emt 0:00:34]} 46. Kc3 {[%emt 0:00:16]} Bd5 {[%emt 0:00:17] [#]} 47. Nb4+ $1 {[%emt 0:00:56]} cxb4+ {[%emt 0:00:04]} 48. Kxb4 {[%emt 0:00:12][%mdl 4096] Endgame KR-KB} Be4 {[%emt 0:00:45]} 49. Ra1 {[%emt 0:00:28]} h5 {[%emt 0:00:37]} 50. Ra8 {[%emt 0:01:45]} Kd5 {[%emt 0:01:57]} 51. Rd8+ {[%emt 0:00:06]} Kc6 {[%emt 0:00:04]} 52. Re8 {[%emt 0:00:21]} Kd5 {[%emt 0:02:33]} 53. e3 {[%emt 0:00:04]} Bd3 {[%emt 0:00:00]} 54. Re5+ {[%emt 0:00:02]} Kd6 {[%emt 0:00:00]} 55. Rxb5 {[%emt 0:01:53]} c3 {[%emt 0:00:00]} 56. Rc5 {[%emt 0:00:01][%cal Ob4c3]} c2 {[%emt 0:00:00]} 57. Rc3 {[%emt 0:00:09]} Be4 {[%emt 0:00:00]} 58. Kb3 {[%emt 0:00:22]} Kd5 {[%emt 0:00:00]} 59. Rxc2 {[%emt 0:00:17] Threatens to win with Rc8.} Bxc2+ {[%emt 0:00:00]} 60. Kxc2 {[%emt 0:00:02] KP-KP. White mates.} Ke4 {[%emt 0:00:00]} 61. Kd2 {[%emt 0:00:05]} Kf3 {[%emt 0:00:00]} 62. Kd3 {[%emt 0:00:02]} Kg2 {[%emt 0:00:00]} 63. e4 {[%emt 0:00:08]} fxe4+ {[%emt 0:00:00]} 64. Kxe4 {[%emt 0:00:04]} Kxh2 {[%emt 0:00:00]} 65. Kf3 {[%emt 0:00:05] White used his chance.  Weighted Error Value: White=0.10 (very precise) /Black=0.30} 1-0

[Event "Charlotte IM-D May 2022"]
[Site "Charlotte"]
[Date "2022.05.06"]
[Round "4.3"]
[White "Marek, Matyas"]
[Black "Zaloznyy, Mike"]
[Result "1/2-1/2"]
[ECO "B12"]
[WhiteElo "2363"]
[BlackElo "2125"]
[Annotator "TA"]
[PlyCount "113"]
[EventDate "2022.05.04"]
[EventType "tourn"]
[EventCountry "USA"]
[SourceTitle "playchess.com"]
[Source "ChessBase"]
[SourceQuality "1"]
[TimeControl "5400+30"]

{[%evp 9,113,0,0,-1,0,11,23,18,24,20,28,17,21,17,26,0,0,0,0,0,0,-12,-8,-40,8,2,16,14,4,10,6,0,0,0,0,0,54,0,69,73,79,81,79,84,85,83,90,91,94,86,99,94,89,54,54,54,68,58,58,58,58,36,58,58,58,58,58,58,58,58,58,58,58,58,58,58,58,58,58,58,58,58,58,58,58,58,58,21,21,21,55,21,37,21,54,21,54,21,21,21,21,21,21,0,0,0]} 1. e4 {[%emt 0:00:04]} c6 {[%emt 0:01:32]} 2. d4 {[%emt 0:00:09]} d5 {[%emt 0:00:05]} 3. e5 {[%emt 0:00:03]} c5 {[%emt 0:00:05]} 4. dxc5 {[%emt 0:00:08]} e6 {[%emt 0:00:06]} 5. a3 {[%emt 0:00:02]} Bxc5 {[%emt 0:00:11]} 6. b4 {[%emt 0:00:07] B12: Caro-Kann: Advance Variation.} Be7 {[%emt 0:00:06]} 7. Nf3 {[%emt 0:00:12]} f6 {[%emt 0:00:30]} 8. Bb2 {[%emt 0:01:08] White has an edge.} a5 {[%emt 0:00:10]} 9. b5 {[%emt 0:03:04]} Nd7 {[%emt 0:00:17]} 10. c4 {[%emt 0:02:15]} Nxe5 {[%emt 0:00:50]} 11. Nxe5 {[%emt 0:02:53]} ({Of course not} 11. Bxe5 fxe5 12. Nxe5 Bd6 $15) 11... fxe5 {[%emt 0:00:12]} 12. cxd5 {[%emt 0:01:52]} ({Reject} 12. Qh5+ g6 13. Qe2 (13. Qxe5 Bf6 $15) 13... Bf6 $15) 12... Nf6 {[%emt 0:00:28]} 13. Bxe5 {[%emt 0:03:19] [#] And now d6 would win.} Qxd5 $146 {[%emt 0:00:13]} ({Predecessor:} 13... exd5 14. Be2 Bd6 15. Qd4 O-O 16. Bxd6 Qxd6 17. Nc3 Be6 18. O-O Rac8 19. Rfd1 Kh8 {0-1 (44) Lettieri,G (2436)-Valsecchi,A (2519) Premium Chess Arena INT 2020}) 14. Qxd5 {[%emt 0:01:17]} exd5 {[%emt 0:00:10]} 15. Bd3 {[%emt 0:01:06]} O-O {[%emt 0:01:06]} 16. O-O {[%emt 0:00:30]} Bc5 {[%emt 0:01:42]} (16... Nd7 $15 17. Bc3 Nc5) 17. Nc3 $11 {[%emt 0:02:46][%cal Bb1c3,Bc3a4,Ba4b6][%mdl 32]} Ng4 {[%emt 0:07:11]} 18. Bg3 {[%emt 0:00:08]} Bf5 {[%emt 0:03:31]} 19. Be2 {[%emt 0:02:46][%cal Bd3e2,Be2f3,Bf3d5][%mdl 32]} Nf6 {[%emt 0:40:09]} 20. Na4 {[%emt 0:06:22]} Be7 {[%emt 0:04:14]} 21. Nb6 {[%emt 0:00:21]} Rae8 {[%emt 0:03:13]} 22. Bf3 {[%emt 0:00:37]} Bd3 {[%emt 0:07:23]} (22... Be4 $11) 23. Rfd1 {[%emt 0:01:25]} ({Better is} 23. Rfc1 $1 $14) 23... Bxb5 {[%emt 0:03:26]} (23... Bc2 $11) 24. Nxd5 $14 {[%emt 0:00:10] White is more active.} Nxd5 {[%emt 0:08:06]} 25. Bxd5+ {[%emt 0:00:23]} Kh8 {[%emt 0:00:07]} 26. Bxb7 {[%emt 0:01:07]} Rd8 {[%emt 0:03:34]} 27. Re1 {[%emt 0:05:48]} Bc5 {[%emt 0:03:24]} 28. a4 {[%emt 0:00:48]} Be8 {[%emt 0:04:19]} 29. Ba6 {[%emt 0:03:04]} Rd4 {[%emt 0:04:44]} 30. Re5 {[%emt 0:06:11]} Bb4 {[%emt 0:03:10]} 31. Bb5 {[%emt 0:02:23]} Bxb5 {[%emt 0:00:29]} 32. axb5 {[%emt 0:00:02]} Bd6 {[%emt 0:00:59]} 33. Re2 {[%emt 0:02:31] aiming for Bxd6.} Bxg3 {[%emt 0:00:05]} 34. hxg3 {[%emt 0:00:02][%mdl 4096] Endgame KRR-KRR} a4 {[%emt 0:00:09]} 35. Rb2 {[%emt 0:01:08]} h6 {[%emt 0:01:00]} 36. b6 {[%emt 0:00:38]} Rb8 {[%emt 0:00:07]} 37. b7 {[%emt 0:00:31]} Rd7 {[%emt 0:00:06]} 38. Rxa4 {[%emt 0:00:11] Strongly threatening Ra8.} Rbxb7 {[%emt 0:00:14]} 39. Rxb7 {[%emt 0:00:06]} Rxb7 {[%emt 0:00:06] KR-KR} 40. g4 {[%emt 0:00:32]} Kh7 {[%emt 0:00:17]} 41. f4 {[%emt 0:00:25]} Rc7 {[%emt 0:01:09]} 42. Kf2 {[%emt 0:52:56]} Rc2+ {[%emt 0:00:28]} 43. Kg3 $1 {[%emt 0:00:00]} Rc3+ {[%emt 0:00:09]} 44. Kh4 {[%emt 0:00:00]} Rc2 {[%emt 0:00:09]} 45. Kh3 $1 {[%emt 0:00:00]} Rc3+ {[%emt 0:00:29]} 46. g3 {[%emt 0:00:00]} Rc2 {[%emt 0:00:22]} 47. Ra5 {[%emt 0:00:00]} Rc1 {[%emt 0:00:40]} 48. g5 {[%emt 0:00:00]} hxg5 {[%emt 0:01:34]} 49. Rxg5 {[%emt 0:00:00]} Rc7 {[%emt 0:00:14]} 50. Ra5 {[%emt 0:00:00]} Rc6 {[%emt 0:00:57]} 51. g4 {[%emt 0:00:00]} Rf6 {[%emt 0:00:18]} 52. Kg3 {[%emt 0:00:00]} Rf7 {[%emt 0:00:42]} 53. Ra6 {[%emt 0:00:00]} g6 $1 {[%emt 0:01:03] The position is equal.} 54. Ra4 {[%emt 0:00:00]} Kg7 {[%emt 0:01:30]} 55. Kh4 {[%emt 0:00:00]} Kh6 {[%emt 0:00:00]} 56. Rb4 {[%emt 0:00:00]} Rxf4 {[%emt 0:00:00][%mdl 64] [#] Remove Defender} 57. Rxf4 {[%emt 0:00:00] Weighted Error Value: White=0.09 (flawless) /Black=0.09 (flawless)} 1/2-1/2

[Event "Charlotte IM-D May 2022"]
[Site "Charlotte"]
[Date "2022.05.06"]
[Round "4.4"]
[White "Rodriguez Rivera, Pedro"]
[Black "Kanli, Alperen"]
[Result "1/2-1/2"]
[ECO "D05"]
[WhiteElo "2197"]
[BlackElo "2173"]
[Annotator "TA"]
[PlyCount "59"]
[EventDate "2022.05.04"]
[EventType "tourn"]
[EventCountry "USA"]
[SourceTitle "playchess.com"]
[Source "ChessBase"]
[SourceQuality "1"]
[TimeControl "5400+30"]

{[%evp 9,59,-9,18,8,26,0,13,-21,2,-38,-42,-44,0,-67,-64,-71,-77,-80,-45,-47,-46,-47,-4,-22,-26,-60,-53,-69,-63,-77,-52,-97,-81,-79,-51,-58,-60,-66,-43,-118,-117,-116,-116,-117,-116,-122,-101,-104,-16,-20,-23,-23]} 1. d4 {[%emt 0:07:39]} d5 {[%emt 0:00:06]} 2. Nf3 {[%emt 0:00:09]} Nf6 {[%emt 0:00:05][%cal Bg8f6,Bf6d7,Bd7c5][%mdl 32]} 3. e3 {[%emt 0:00:05]} c5 {[%emt 0:00:22]} 4. c3 {[%emt 0:00:06]} Nc6 {[%emt 0:00:15]} 5. Bd3 {[%emt 0:00:02]} g6 {[%emt 0:00:49]} 6. Nbd2 {[%emt 0:01:06] D05: Colle System with ...e6.} Bg7 {[%emt 0:00:25]} 7. O-O {[%emt 0:00:27]} Nd7 {[%emt 0:01:53]} 8. Bc2 {[%emt 0:07:43] The position is equal.} O-O {[%emt 0:04:57]} 9. dxc5 {[%emt 1:17:43]} Nxc5 {[%emt 0:06:45]} 10. e4 {[%emt 0:00:00]} Bg4 {[%emt 0:04:41]} 11. h3 {[%emt 0:00:00] [#]} (11. exd5 $1 $11 Qxd5 12. Nb3 Bxf3 13. Qxf3 Qxf3 14. gxf3) 11... Bxf3 $146 {[%emt 0:06:28]} ({Predecessor:} 11... dxe4 12. hxg4 exf3 13. Nxf3 Qc8 14. Be3 Rd8 15. Qe2 Nd7 16. Rfd1 Nde5 17. Rxd8+ Qxd8 18. Rd1 Nxf3+ 19. Qxf3 Qc7 20. Bb3 {½-½ (20) Ophoff,R (2009)-Daeubler,H (2190) Magdeburg 2015}) 12. Qxf3 {[%emt 0:00:00]} d4 {[%emt 0:00:00]} 13. Nb3 {[%emt 0:00:00]} Nxb3 {[%emt 0:05:47]} 14. Bxb3 {[%emt 0:00:00]} dxc3 {[%emt 0:05:13]} 15. bxc3 {[%emt 0:00:00]} Ne5 {[%emt 0:07:34]} 16. Qe3 {[%emt 0:00:00]} Qc7 {[%emt 0:09:08]} 17. Ba3 {[%emt 0:00:00]} Rfc8 {[%emt 0:04:08]} 18. Rab1 {[%emt 0:00:00]} b6 {[%emt 0:05:12]} 19. Bd5 {[%emt 0:00:00]} Rab8 {[%emt 0:00:16]} 20. Rfc1 {[%emt 0:00:00]} e6 {[%emt 0:05:21]} 21. Bb3 {[%emt 0:00:00]} Nc4 {[%emt 0:07:24]} 22. Bxc4 {[%emt 0:00:00]} Qxc4 {[%emt 0:00:02]} 23. Bd6 {[%emt 0:00:00]} Rb7 {[%emt 0:02:22]} 24. Rb3 {[%emt 0:00:00]} (24. Rc2 $15) 24... Rd7 $17 {[%emt 0:08:37]} 25. e5 {[%emt 0:00:00]} Bf8 {[%emt 0:15:10]} 26. Rd1 {[%emt 0:08:30]} Bxd6 {[%emt 0:00:30]} 27. exd6 {[%emt 0:00:30]} Rcd8 28. Ra3 Rxd6 {[%emt 0:01:00]} (28... Qb5 $17) 29. Rxd6 $11 Rxd6 {[%emt 0:00:30]} 30. Rxa7 {Weighted Error Value: White=0.23 (precise) /Black=0.19 (very precise)} 1/2-1/2